fUSD/lending_fUSD_20250106
["ID","MTS","AMOUNT","RATE_DAILY","PERIOD"]
[347866349,1736171437712,-500.0,0.00011231,2]
[347866350,1736171437721,-500.0,0.00011231,2]
[347866351,1736171437731,-1947.57,0.00011231,2]
[347866352,1736171437743,-1004.87682,0.00011231,2]
[347866353,1736171437753,-500.0,0.00011231,2]
[347866354,1736171437765,-500.0,0.00011231,2]
[347866355,1736171437775,-524.76723897,0.00011231,2]
[347866356,1736171437785,-500.0,0.00011231,2]
[347866357,1736171437795,-500.0,0.00011231,2]
[347866358,1736171437805,-1741.49,0.00011231,2]
[347866359,1736171437815,-1618.91,0.00011231,2]
[347866360,1736171437824,-500.0,0.00011231,2]
[347866361,1736171437834,-938.71,0.00011231,2]
[347866362,1736171437844,-500.0,0.00011231,2]
[347866363,1736171437854,-538.03,0.00011231,2]
[347866364,1736171437864,-500.0,0.00011231,2]
[347866365,1736171437875,-1468.21,0.00011231,2]
[347866366,1736171437885,-545.98603669,0.00011231,2]
[347866367,1736171437894,-500.0,0.00011231,2]
[347866368,1736171437904,-1820.18,0.00011231,2]
[347866369,1736171437913,-500.0,0.00011231,2]
[347866370,1736171437923,-500.0,0.00011231,2]
[347866371,1736171437933,-500.0,0.00011231,2]
[347866372,1736171437942,-500.0,0.00011231,2]
[347866373,1736171437952,-500.0,0.00011231,2]
[347866374,1736171437961,-500.0,0.00011231,2]
[347866375,1736171437971,-500.0,0.00011231,2]
[347866376,1736171437980,-566.63,0.00011231,2]
[347866377,1736171437991,-500.0,0.00011231,2]
[347866378,1736171438000,-500.0,0.00011231,2]
[347866379,1736171438010,-500.0,0.00011231,2]
[347866380,1736171438019,-500.0,0.00011231,2]
[347866381,1736171438028,-500.0,0.00011231,2]
[347866382,1736171438039,-500.0,0.00011231,2]
[347866383,1736171438049,-519.29,0.00011231,2]
[347866384,1736171438058,-500.0,0.00011231,2]
[347866385,1736171438068,-500.0,0.00011231,2]
[347866386,1736171438078,-500.0,0.00011231,2]
[347866387,1736171438087,-228.82996754,0.00011245,2]
[347866388,1736171438097,-151.59989468,0.00011267,2]
[347866389,1736171438107,-262.319,0.0001127,2]
[347866390,1736171438117,-5611.094,0.0001127,2]
[347866391,1736171438127,-1000.0,0.00011272,2]
[347866392,1736171438136,-500.0,0.00011272,2]
[347866393,1736171438146,-627.19596341,0.00011272,2]
[347866394,1736171438156,-1402.31,0.00011272,2]
[347866395,1736171438165,-941.76,0.00011272,2]
[347866396,1736171438175,-810.25,0.00011292,2]
[347866397,1736171438184,-809.95,0.00011292,2]
[347866398,1736171438194,-1690.91,0.00011292,2]
[347866399,1736171438203,-500.0,0.00011293,2]
[347866400,1736171438213,-500.0,0.00011293,2]
[347866401,1736171438223,-520.43,0.00011293,2]
[347866402,1736171438232,-555.8,0.00011293,2]
[347866403,1736171438242,-5900.0,0.000113,4]
[347866404,1736171438251,-500.0,0.00011317,2]
[347866405,1736171438260,-500.0,0.00011317,2]
[347866406,1736171438270,-500.0,0.00011317,2]
[347866407,1736171438280,-500.0,0.00011317,2]
[347866408,1736171438335,-1267.13,0.00011317,2]
[347866409,1736171438346,-2358.59,0.00011317,2]
[347866410,1736171438355,-1174.46,0.00011317,2]
[347866411,1736171438365,-524.98,0.00011317,2]
[347866412,1736171438375,-437.72,0.00011342,2]
[347866413,1736171438384,-771.82,0.00011342,2]
[347866414,1736171438393,-437.72,0.00011342,2]
[347866415,1736171438402,-771.82,0.00011342,2]
[347866416,1736171438412,-771.82,0.00011342,2]
[347866417,1736171438421,-437.72,0.00011342,2]
[347866418,1736171438431,-771.82,0.00011342,2]
[347866419,1736171438441,-436.4,0.00011342,2]
[347866420,1736171438450,-770.22,0.00011342,2]
[347866421,1736171438459,-228.82996754,0.00011348,2]
[347866422,1736171438468,-151.59989468,0.00011367,2]
[347866423,1736171438478,-918.8,0.00011391,2]
[347866424,1736171438487,-880.52,0.00011391,2]
[347866425,1736171438497,-742.56,0.00011391,2]
[347866426,1736171438506,-1979.58,0.00011391,2]
[347866427,1736171438515,-1048.97,0.00011391,2]
[347866428,1736171438525,-2833.09,0.00011391,2]
[347866429,1736171438534,-2833.09,0.00011391,2]
[347866430,1736171438545,-898.20846459,0.00011392,2]
[347866431,1736171438600,-112.76153541,0.00011392,2]
[347866432,1736171438613,-395.19746459,0.00011392,2]
[347866433,1736171438628,-386.666,0.00011392,2]
[347866434,1736171438942,-276.30653541,0.00011392,2]
[347866435,1736171438952,-110.69346459,0.00011392,2]
[347866436,1736171439433,-500.0,0.00010955,2]
[347866437,1736171439442,-1078.48,0.00010957,2]
[347866438,1736171439452,-1000.0,0.00011176,2]
[347866439,1736171439462,-1000.0,0.00011176,2]
[347866440,1736171439471,-1000.0,0.00011176,2]
[347866441,1736171439480,-1000.0,0.00011176,2]
[347866442,1736171439489,-1000.0,0.00011176,2]
[347866443,1736171439499,-1000.0,0.00011176,2]
[347866444,1736171439509,-1000.0,0.00011176,2]
[347866445,1736171439518,-1000.0,0.00011176,2]
[347866446,1736171439528,-1000.0,0.00011176,2]
[347866447,1736171439537,-1000.0,0.00011176,2]
[347866448,1736171439548,-1078.48,0.00011231,2]
[347866449,1736171439559,-400.49653541,0.00011392,2]
[347866450,1736171439569,-500.0,0.00011392,2]
[347866451,1736171439578,-976.16,0.00011392,2]
[347866452,1736171439588,-500.0,0.00011392,2]
[347866453,1736171439598,-500.0,0.00011392,2]
[347866454,1736171439609,-530.78,0.00011392,2]
[347866455,1736171439621,-642.28,0.00011393,2]
[347866456,1736171439631,-500.0,0.00011393,2]
[347866457,1736171439640,-500.0,0.00011393,2]
[347866458,1736171439651,-610.25,0.00011393,2]
[347866459,1736171439660,-407.16078324,0.00011393,2]
[347866460,1736171439669,-500.0,0.00011393,2]
[347866461,1736171439679,-500.0,0.00011393,2]
[347866462,1736171439690,-1099.24,0.00011393,2]
[347866463,1736171439699,-60.35321635,0.00011393,2]
[347866464,1736171439716,-539.7446591,0.00011393,2]
[347866465,1736171439728,-389.62212455,0.00011393,2]
[347866466,1736171439737,-1681.61,0.00011393,2]
[347866467,1736171439747,-4573.22,0.00011393,2]
[347866468,1736171439756,-500.0,0.00011393,2]
[347866469,1736171439765,-924.08,0.00011393,2]
[347866470,1736171439775,-500.0,0.00011393,2]
[347866471,1736171439784,-500.0,0.00011393,2]
[347866472,1736171439794,-2499.25,0.00011393,2]
[347866473,1736171439803,-2289.15,0.00011393,2]
[347866474,1736171439813,-1073.59,0.00011393,2]
[347866475,1736171439822,-371.57849156,0.00011393,2]
[347866476,1736171439833,-128.42150844,0.00011393,2]
[347866477,1736171439842,-1126.49657897,0.00011393,2]
[347866479,1736171440071,-415.1,0.00011393,2]
[347866480,1736171440083,-6.46342103,0.00011393,2]
[347866481,1736171440092,-568.15,0.00011393,2]
[347866482,1736171440101,-889.35,0.00011393,2]
[347866483,1736171440111,-990.93,0.00011393,2]
[347866484,1736171440120,-500.0,0.00011393,2]
[347866485,1736171440129,-52.86530897,0.00011393,2]
[347866486,1736171440140,-549.71469103,0.00011393,2]
[347866487,1736171440149,-500.0,0.00011399,2]
[347866488,1736171440158,-448.91693263,0.00011399,2]
[347866489,1736171440167,-500.0,0.00011399,2]
[347866490,1736171440176,-1100.0,0.000114,4]
[347866491,1736171440186,-1500.0,0.00011406,2]
[347866492,1736171440195,-429.61954248,0.00011407,2]
[347866493,1736171440205,-150.0,0.0001142,2]
[347866494,1736171440214,-150.0,0.00011422,2]
[347866495,1736171440223,-150.0,0.00011428,2]
[347866496,1736171440233,-150.0,0.00011433,2]
[347866497,1736171440243,-1500.0,0.00011436,2]
[347866498,1736171440253,-150.0,0.00011436,2]
[347866499,1736171440263,-150.0,0.00011436,2]
[347866500,1736171440272,-150.0,0.0001144,2]
[347866501,1736171440282,-150.0,0.00011441,2]
[347866502,1736171440291,-150.0,0.00011441,2]
[347866503,1736171440300,-181.55,0.00011442,2]
[347866504,1736171440310,-150.0,0.00011444,2]
[347866505,1736171440319,-150.0,0.00011444,2]
[347866506,1736171440328,-150.0,0.00011444,2]
[347866507,1736171440338,-150.0,0.00011445,2]
[347866508,1736171440347,-150.0,0.00011447,2]
[347866509,1736171440357,-228.82996754,0.00011452,2]
[347866510,1736171440366,-150.0,0.00011458,2]
[347866511,1736171440375,-150.0,0.00011461,2]
[347866512,1736171440385,-150.0,0.00011463,2]
[347866513,1736171440394,-151.59989468,0.00011466,2]
[347866514,1736171440403,-150.0,0.00011467,2]
[347866515,1736171440412,-150.0,0.0001147,2]
[347866516,1736171440422,-198.0576113,0.00011473,2]
[347866517,1736171440431,-150.0,0.00011475,2]
[347866518,1736171440440,-150.0,0.00011476,2]
[347866519,1736171440449,-926.0,0.00011477,2]
[347866520,1736171440458,-182.88,0.00011479,2]
[347866522,1736171440468,-979.32,0.00011479,2]
[347866524,1736171440477,-182.88,0.00011479,2]
[347866526,1736171440487,-979.32,0.00011479,2]
[347866528,1736171440496,-182.88,0.00011479,2]
[347866530,1736171440506,-979.32,0.00011479,2]
[347866532,1736171440515,-182.88,0.00011479,2]
[347866534,1736171440525,-251.53202034,0.00011479,2]
[347866537,1736171440537,-351.21797966,0.00011479,2]
[347866539,1736171440547,-182.88,0.00011479,2]
[347866541,1736171440557,-182.88,0.00011479,2]
[347866543,1736171440566,-182.88,0.00011479,2]
[347866545,1736171440575,-182.88,0.00011479,2]
[347866547,1736171440585,-182.88,0.00011479,2]
[347866549,1736171440594,-150.0,0.0001148,2]
[347866551,1736171440604,-150.0,0.00011482,2]
[347866553,1736171440620,-150.0,0.00011486,2]
[347866555,1736171440630,-150.0,0.00011487,2]
[347866557,1736171440640,-150.0,0.00011489,2]
[347866559,1736171440650,-150.0,0.0001149,2]
[347866561,1736171440660,-150.0,0.00011492,2]
[347866563,1736171440669,-150.0,0.00011493,2]
[347866565,1736171440678,-150.0,0.00011495,2]
[347866567,1736171440688,-529.89431248,0.000115,4]
[347866569,1736171440701,-570.10568752,0.000115,4]
[347866571,1736171440711,-11280.80635469,0.000115,2]
[347866573,1736171440722,-865.00260494,0.000115,2]
[347866575,1736171440732,-150.0,0.00011502,2]
[347866578,1736171440741,-150.0,0.00011503,2]
[347866580,1736171440750,-500.0,0.00011503,2]
[347866582,1736171440759,-500.0,0.00011503,2]
[347866584,1736171440769,-275.92468307,0.00011504,2]
[347866586,1736171440778,-2093.42,0.00011504,2]
[347866588,1736171440787,-500.0,0.00011504,2]
[347866590,1736171440797,-1084.23,0.00011504,2]
[347866592,1736171440806,-500.0,0.00011504,2]
[347866594,1736171440815,-1433.13,0.00011504,2]
[347866596,1736171440826,-500.0,0.00011504,2]
[347866598,1736171440836,-500.0,0.00011504,2]
[347866600,1736171440845,-750.98,0.00011504,2]
[347866602,1736171440854,-606.68,0.00011504,2]
[347866604,1736171440864,-1706.94,0.00011504,2]
[347866605,1736171440873,-500.0,0.00011505,2]
[347866607,1736171440883,-500.0,0.00011505,2]
[347866610,1736171440892,-500.0,0.00011505,2]
[347866612,1736171440902,-501.56,0.00011505,2]
[347866614,1736171440911,-1483.24,0.00011505,2]
[347866615,1736171440921,-500.0,0.00011505,2]
[347866618,1736171440930,-500.0,0.00011505,2]
[347866620,1736171440939,-500.0,0.00011505,2]
[347866622,1736171440949,-500.0,0.00011505,2]
[347866624,1736171440958,-500.0,0.00011505,2]
[347866626,1736171440967,-907.7,0.00011505,2]
[347866627,1736171440976,-285.37248926,0.00011505,2]
[347866629,1736171440986,-500.0,0.00011505,2]
[347866631,1736171440995,-500.0,0.00011505,2]
[347866633,1736171441004,-500.0,0.00011505,2]
[347866635,1736171441014,-500.0,0.00011505,2]
[347866637,1736171441023,-500.0,0.00011505,2]
[347866639,1736171441032,-500.0,0.00011505,2]
[347866641,1736171441042,-959.284102,0.00011505,2]
[347866643,1736171441051,-500.0,0.00011505,2]
[347866645,1736171441060,-500.0,0.00011505,2]
[347866647,1736171441070,-500.0,0.00011505,2]
[347866649,1736171441079,-1947.57,0.00011505,2]
[347866650,1736171441088,-1004.87682,0.00011505,2]
[347866651,1736171441097,-500.0,0.00011505,2]
[347866652,1736171441107,-500.0,0.00011505,2]
[347866653,1736171441116,-500.0,0.00011505,2]
[347866654,1736171441125,-1741.49,0.00011505,2]
[347866655,1736171441135,-1618.91,0.00011505,2]
[347866656,1736171441144,-500.0,0.00011505,2]
[347866657,1736171441153,-938.71,0.00011505,2]
[347866658,1736171441163,-500.0,0.00011505,2]
[347866659,1736171441173,-538.03,0.00011505,2]
[347866660,1736171441183,-500.0,0.00011505,2]
[347866661,1736171441192,-1468.21,0.00011505,2]
[347866662,1736171441201,-500.0,0.00011505,2]
[347866663,1736171441212,-1820.18,0.00011505,2]
[347866664,1736171441222,-500.0,0.00011505,2]
[347866665,1736171441233,-500.0,0.00011505,2]
[347866667,1736171441242,-500.0,0.00011505,2]
[347866669,1736171441251,-500.0,0.00011505,2]
[347866671,1736171441261,-500.0,0.00011505,2]
[347866672,1736171441271,-500.0,0.00011505,2]
[347866673,1736171441280,-500.0,0.00011505,2]
[347866674,1736171441289,-566.63,0.00011505,2]
[347866675,1736171441299,-525.03704134,0.00011505,2]
[347866676,1736171441309,-500.0,0.00011505,2]
[347866677,1736171441318,-500.0,0.00011505,2]
[347866678,1736171441328,-500.0,0.00011505,2]
[347866679,1736171441337,-500.0,0.00011505,2]
[347866680,1736171441347,-500.0,0.00011505,2]
[347866681,1736171441356,-519.29,0.00011505,2]
[347866682,1736171441366,-446.10225939,0.00011505,2]
[347866689,1736171443039,-150.0,0.0001143,2]
[347866690,1736171443052,-150.0,0.00011439,2]
[347866691,1736171443061,-150.0,0.0001144,2]
[347866692,1736171443072,-150.0,0.00011451,2]
[347866693,1736171443081,-182.38,0.00011479,2]
[347866694,1736171443090,-150.0,0.00011484,2]
[347866695,1736171443099,-150.0,0.00011497,2]
[347866696,1736171443108,-53.89774061,0.00011505,2]
[347866697,1736171443117,-500.0,0.00011505,2]
[347866698,1736171443127,-500.0,0.00011505,2]
[347866699,1736171443137,-1078.48,0.00011505,2]
[347866700,1736171443146,-150.0,0.00011506,2]
[347866701,1736171443155,-150.0,0.00011508,2]
[347866702,1736171443164,-150.0,0.0001151,2]
[347866703,1736171443174,-150.0,0.00011514,2]
[347866704,1736171443183,-150.0,0.00011514,2]
[347866705,1736171443193,-150.0,0.00011515,2]
[347866706,1736171443202,-150.0,0.00011516,2]
[347866707,1736171443212,-36.45357894,0.00011519,2]
[347866708,1736171443224,-113.54642106,0.00011519,2]
[347866709,1736171443234,-150.0,0.00011519,2]
[347866710,1736171443243,-150.0,0.00011523,2]
[347866711,1736171443253,-150.0,0.00011523,2]
[347866712,1736171443263,-150.0,0.00011525,2]
[347866713,1736171443272,-150.0,0.00011526,2]
[347866714,1736171443283,-150.0,0.00011526,2]
[347866715,1736171443295,-150.0,0.00011534,2]
[347866716,1736171443305,-150.0,0.00011534,2]
[347866718,1736171443314,-150.0,0.00011535,2]
[347866720,1736171443324,-150.0,0.00011535,2]
[347866722,1736171443333,-150.0,0.00011537,2]
[347866724,1736171443342,-150.0,0.00011538,2]
[347866726,1736171443352,-150.0,0.0001154,2]
[347866728,1736171443361,-150.0,0.0001154,2]
[347866729,1736171443371,-500.0,0.00011545,2]
[347866730,1736171443381,-200.0,0.00011545,2]
[347866731,1736171443390,-150.0,0.00011545,2]
[347866732,1736171443400,-500.0,0.00011546,2]
[347866733,1736171443409,-1402.31,0.00011546,2]
[347866734,1736171443418,-941.76,0.00011546,2]
[347866735,1736171443427,-150.0,0.00011549,2]
[347866736,1736171443437,-150.0,0.0001155,2]
[347866737,1736171443446,-150.0,0.00011551,2]
[347866738,1736171443455,-150.0,0.00011553,2]
[347866739,1736171443466,-150.0,0.00011554,2]
[347866740,1736171443475,-228.82996754,0.00011555,2]
[347866742,1736171443485,-150.0,0.00011556,2]
[347866744,1736171443494,-150.0,0.00011556,2]
[347866746,1736171443504,-150.0,0.00011557,2]
[347866748,1736171443513,-150.0,0.00011559,2]
[347866750,1736171443522,-150.0,0.0001156,2]
[347866752,1736171443532,-150.0,0.0001156,2]
[347866754,1736171443542,-150.0,0.00011565,2]
[347866756,1736171443552,-151.59989468,0.00011566,2]
[347866758,1736171443562,-1500.0,0.00011566,2]
[347866759,1736171443571,-810.25,0.00011566,2]
[347866761,1736171443581,-809.95,0.00011566,2]
[347866764,1736171443591,-1690.91,0.00011566,2]
[347866766,1736171443601,-500.0,0.00011567,2]
[347866768,1736171443610,-150.0,0.00011567,2]
[347866770,1736171443625,-500.0,0.00011567,2]
[347866772,1736171443635,-520.43,0.00011567,2]
[347866774,1736171443644,-555.8,0.00011567,2]
[347866775,1736171443654,-150.0,0.00011567,2]
[347866778,1736171443664,-2000.0,0.00011568,2]
[347866779,1736171443673,-200.0,0.00011568,2]
[347866782,1736171443683,-2000.0,0.00011568,2]
[347866783,1736171443693,-200.0,0.00011568,2]
[347866785,1736171443703,-3000.0,0.00011568,2]
[347866788,1736171443713,-150.0,0.0001157,2]
[347866790,1736171443722,-150.0,0.00011574,2]
[347866791,1736171443731,-150.0,0.00011576,2]
[347866793,1736171443741,-150.0,0.00011579,2]
[347866795,1736171443751,-150.0,0.0001158,2]
[347866798,1736171443760,-150.0,0.00011583,2]
[347866800,1736171443772,-150.0,0.00011583,2]
[347866802,1736171443781,-150.0,0.00011584,2]
[347866804,1736171443791,-150.0,0.00011584,2]
[347866806,1736171443800,-1000.0,0.00011588,2]
[347866808,1736171443810,-171.50584172,0.00011588,2]
[347866810,1736171443819,-576.70736174,0.00011589,2]
[347866812,1736171443829,-150.0,0.0001159,2]
[347866814,1736171443844,-500.0,0.00011591,2]
[347866816,1736171443856,-500.0,0.00011591,2]
[347866818,1736171443866,-500.0,0.00011591,2]
[347866820,1736171443876,-500.0,0.00011591,2]
[347866822,1736171443885,-2358.59,0.00011591,2]
[347866824,1736171443895,-1174.46,0.00011591,2]
[347866826,1736171443905,-524.98,0.00011591,2]
[347866828,1736171443914,-150.0,0.00011597,2]
[347866830,1736171443924,-1100.0,0.000116,4]
[347866832,1736171443933,-150.0,0.00011601,2]
[347866834,1736171443943,-150.0,0.00011601,2]
[347866836,1736171443953,-150.0,0.00011603,2]
[347866838,1736171443963,-150.0,0.00011603,2]
[347866840,1736171443973,-150.0,0.00011605,2]
[347866842,1736171443982,-150.0,0.00011608,2]
[347866844,1736171443991,-150.0,0.00011609,2]
[347866846,1736171444001,-150.0,0.0001161,2]
[347866848,1736171444011,-150.0,0.00011613,2]
[347866850,1736171444020,-150.0,0.00011618,2]
[347866852,1736171444030,-150.0,0.00011619,2]
[347866854,1736171444039,-150.0,0.00011619,2]
[347866856,1736171444051,-150.0,0.00011621,2]
[347866858,1736171444060,-150.0,0.00011622,2]
[347866860,1736171444070,-150.0,0.00011624,2]
[347866862,1736171444079,-150.0,0.00011624,2]
[347866864,1736171444089,-150.0,0.0001163,2]
[347866866,1736171444099,-150.0,0.00011633,2]
[347866868,1736171444108,-150.0,0.00011636,2]
[347866870,1736171444119,-150.0,0.00011636,2]
[347866873,1736171444128,-150.0,0.00011636,2]
[347866875,1736171444138,-150.0,0.00011637,2]
[347866877,1736171444148,-150.0,0.00011637,2]
[347866879,1736171444158,-150.0,0.00011637,2]
[347866881,1736171444167,-150.0,0.00011644,2]
[347866883,1736171444176,-150.0,0.00011644,2]
[347866885,1736171444186,-150.0,0.00011646,2]
[347866887,1736171444196,-150.0,0.00011647,2]
[347866889,1736171444206,-150.0,0.00011649,2]
[347866891,1736171444215,-150.0,0.0001165,2]
[347866893,1736171444225,-184.51,0.00011652,2]
[347866895,1736171444235,-150.0,0.00011655,2]
[347866897,1736171444244,-150.0,0.00011656,2]
[347866899,1736171444254,-228.82996754,0.00011659,2]
[347866901,1736171444264,-918.8,0.00011665,2]
[347866903,1736171444273,-880.52,0.00011665,2]
[347866905,1736171444282,-742.56,0.00011665,2]
[347866907,1736171444292,-1979.58,0.00011665,2]
[347866909,1736171444301,-1048.97,0.00011665,2]
[347866911,1736171444311,-2833.09,0.00011665,2]
[347866913,1736171444320,-2833.09,0.00011665,2]
[347866915,1736171444329,-151.59989468,0.00011665,2]
[347866917,1736171444338,-1010.97,0.00011666,2]
[347866919,1736171444348,-1058.17,0.00011666,2]
[347866921,1736171444357,-511.19,0.00011666,2]
[347866923,1736171444366,-500.0,0.00011666,2]
[347866925,1736171444376,-976.16,0.00011666,2]
[347866927,1736171444385,-636.73,0.00011666,2]
[347866929,1736171444394,-500.0,0.00011666,2]
[347866930,1736171444404,-530.78,0.00011666,2]
[347866931,1736171444414,-642.28,0.00011667,2]
[347866932,1736171444424,-500.0,0.00011667,2]
[347866933,1736171444434,-610.25,0.00011667,2]
[347866934,1736171444444,-500.0,0.00011667,2]
[347866935,1736171444454,-500.0,0.00011667,2]
[347866936,1736171444463,-1099.24,0.00011667,2]
[347866937,1736171444473,-989.72,0.00011667,2]
[347866938,1736171444483,-1653.987659,0.00011667,2]
[347866939,1736171444496,-27.622341,0.00011667,2]
[347866940,1736171444506,-681.45472901,0.00011667,2]
[347866941,1736171444518,-3891.76527099,0.00011667,2]
[347866942,1736171444528,-500.0,0.00011667,2]
[347866943,1736171444537,-500.0,0.00011667,2]
[347866944,1736171444547,-500.0,0.00011667,2]
[347866945,1736171444557,-2499.25,0.00011667,2]
[347866946,1736171444566,-2289.15,0.00011667,2]
[347866947,1736171444575,-1073.59,0.00011667,2]
[347866948,1736171444584,-500.0,0.00011667,2]
[347866949,1736171444594,-428.02989999,0.00011667,2]
[347866950,1736171444603,-1548.06,0.00011667,2]
[347866951,1736171444612,-568.15,0.00011667,2]
[347866952,1736171444625,-889.35,0.00011667,2]
[347866953,1736171444634,-990.93,0.00011667,2]
[347866954,1736171444643,-500.0,0.00011667,2]
[347866955,1736171444653,-602.58,0.00011667,2]
[347866956,1736171444663,-150.0,0.00011668,2]
[347866957,1736171444672,-150.0,0.00011671,2]
[347866958,1736171444682,-150.0,0.00011679,2]
[347866959,1736171444692,-150.0,0.00011681,2]
[347866960,1736171444702,-150.0,0.00011682,2]
[347866961,1736171444713,-150.0,0.00011684,2]
[347866962,1736171444723,-200.0,0.00011684,2]
[347866963,1736171444733,-150.0,0.00011686,2]
[347866964,1736171444743,-150.0,0.00011687,2]
[347866965,1736171444753,-150.0,0.0001169,2]
[347866966,1736171444763,-150.0,0.0001169,2]
[347866967,1736171444773,-150.0,0.0001169,2]
[347866968,1736171444782,-150.0,0.00011694,2]
[347866969,1736171444792,-150.0,0.00011695,2]
[347866970,1736171444802,-150.0,0.00011697,2]
[347866971,1736171444812,-125.26843458,0.000117,4]
[347866972,1736171444954,-150.0,0.00011433,2]
[347866973,1736171444964,-150.0,0.00011538,2]
[347866974,1736171444974,-5.02717824,0.00011566,2]
[347866975,1736171445963,-770.07,0.0001047,2]
[347866976,1736171445973,-955.43,0.00010571,2]
[347866977,1736171445982,-232.204,0.00010744,2]
[347866978,1736171446076,-313.06330969,0.00010297,2]
[347866979,1736171446087,-186.93669031,0.00010297,2]
[347866980,1736171446096,-537.866,0.00010744,2]
[347866981,1736171446106,-183.33209837,0.00010845,2]
[347866982,1736171446117,-772.09790163,0.00010845,2]
[347866983,1736171446126,-1103.0,0.00011114,2]
[347866984,1736171446135,-955.43,0.00011119,2]
[347866985,1736171446144,-150.0,0.00011422,2]
[347866986,1736171446153,-88.55296523,0.00011427,2]
[347866987,1736171446164,-61.44703477,0.00011427,2]
[347866988,1736171446173,-150.0,0.00011427,2]
[347866989,1736171446182,-150.0,0.00011434,2]
[347866990,1736171446191,-150.0,0.00011436,2]
[347866991,1736171446200,-150.0,0.00011447,2]
[347866992,1736171446209,-150.0,0.00011455,2]
[347866993,1736171446219,-150.0,0.00011459,2]
[347866994,1736171446228,-150.0,0.00011459,2]
[347866995,1736171446238,-150.0,0.00011459,2]
[347866996,1736171446247,-150.0,0.0001146,2]
[347866997,1736171446256,-150.0,0.00011462,2]
[347866998,1736171446266,-150.0,0.00011467,2]
[347866999,1736171446276,-150.0,0.0001147,2]
[347867000,1736171446285,-150.0,0.00011471,2]
[347867001,1736171446295,-150.0,0.0001148,2]
[347867003,1736171446305,-150.0,0.00011484,2]
[347867004,1736171446314,-150.0,0.00011487,2]
[347867005,1736171446323,-150.0,0.0001149,2]
[347867006,1736171446333,-150.0,0.0001149,2]
[347867007,1736171446342,-150.0,0.00011492,2]
[347867008,1736171446351,-150.0,0.00011492,2]
[347867010,1736171446361,-150.0,0.00011493,2]
[347867018,1736171446533,-150.0,0.00011499,2]
[347867019,1736171446575,-150.0,0.00011499,2]
[347867020,1736171446584,-150.0,0.000115,2]
[347867021,1736171446594,-150.0,0.00011503,2]
[347867022,1736171446603,-150.0,0.00011505,2]
[347867023,1736171446615,-150.0,0.00011517,2]
[347867024,1736171446631,-150.0,0.0001152,2]
[347867025,1736171446642,-150.0,0.0001152,2]
[347867026,1736171446651,-150.0,0.00011527,2]
[347867027,1736171446660,-150.0,0.00011529,2]
[347867028,1736171446671,-18.59763963,0.00011531,2]
[347867029,1736171446682,-131.40236037,0.00011531,2]
[347867030,1736171446692,-150.0,0.00011541,2]
[347867031,1736171446702,-150.0,0.00011562,2]
[347867032,1736171446711,-0.69260617,0.00011562,2]
[347867033,1736171446723,-149.30739383,0.00011562,2]